bitfinex/quotes_ETHUSD_20250807
["timestamp","ask_amount","ask_price","bid_price","bid_amount"]
[1754559726656,1e-08,3729.7,3729.6,6.42955268]
[1754559727435,0.91800001,3729.7,3729.6,15.15325855]
[1754559727757,0.91800001,3729.7,3729.6,5.92308868]
[1754559727956,0.91800001,3729.7,3729.6,5.81565268]
[1754559730265,0.91800001,3729.7,3729.6,5.68125268]
[1754559731088,0.47950001,3729.7,3729.6,5.68125268]
[1754559732263,0.91800001,3729.7,3729.6,5.68125268]
[1754559734578,0.47950001,3729.7,3729.6,5.68125268]
[1754559735459,1e-08,3729.7,3729.6,5.68125268]
[1754559735849,0.47950001,3729.7,3729.6,5.68125268]
[1754559737176,1e-08,3729.7,3729.6,5.68125268]
[1754559737357,1e-08,3729.7,3729.6,6.63095268]
[1754559738345,1e-08,3729.7,3729.6,6.29515268]
[1754559738546,1e-08,3729.7,3729.6,6.77825268]
[1754559738866,1e-08,3729.7,3729.6,7.24485268]
[1754559740181,1e-08,3729.7,3729.6,6.77825268]
[1754559740379,1e-08,3729.7,3729.6,7.21175268]
[1754559740685,1e-08,3729.7,3729.6,6.77825268]
[1754559743675,1e-08,3729.7,3729.6,7.21175268]
[1754559743848,1e-08,3729.7,3729.6,6.77825268]
[1754559744254,1e-08,3729.7,3729.6,6.29515268]
[1754559748295,1e-08,3729.7,3729.6,6.75595268]
[1754559748464,0.25115206,3729.7,3729.6,7.18945268]
[1754559749205,1e-08,3729.7,3729.6,7.18945268]
[1754559749505,0.002,3730.1,3730.0,5.68096514]
[1754559749795,0.002,3730.1,3730.0,15.01857101]
[1754559750106,0.002,3730.1,3730.0,15.61377101]
[1754559750457,0.002,3730.1,3730.0,15.15297101]
[1754559752704,0.002,3730.1,3730.0,15.61377101]
[1754559754703,1e-08,3730.1,3730.0,15.15297101]
[1754559754895,1e-08,3730.1,3730.0,16.04727101]
[1754559755072,1e-08,3730.1,3730.0,15.61377101]
[1754559755271,1e-08,3730.1,3730.0,15.15297101]
[1754559756105,1e-08,3730.1,3730.0,16.04727101]
[1754559758013,1e-08,3730.1,3730.0,15.61377101]
[1754559758175,1e-08,3730.1,3730.0,16.04727101]
[1754559759469,1e-08,3730.5,3730.4,2.68067767]
[1754559759679,1e-08,3730.5,3730.4,15.01828354]
[1754559759910,1e-08,3730.9,3730.8,5.68039026]
[1754559760127,1e-08,3730.9,3730.8,15.01799613]
[1754559760438,1e-08,3730.9,3730.8,16.04669613]
[1754559760721,1e-08,3730.9,3730.8,15.61319613]
[1754559760945,1e-08,3730.9,3730.8,16.04669613]
[1754559761488,1e-08,3731.3,3731.2,2.68010291]
[1754559761815,1e-08,3731.3,3731.2,15.01770878]
[1754559762125,0.92660001,3731.3,3731.2,5.81450291]
[1754559762332,0.92660001,3731.3,3731.2,5.68010291]
[1754559763123,0.25065867,3731.3,3731.2,5.68010291]
[1754559763322,1.17725867,3731.3,3731.2,5.68010291]
[1754559764617,0.92660001,3731.3,3731.2,5.68010291]
[1754559766031,0.92660001,3731.3,3731.2,5.88503328]
[1754559766693,0.92660001,3731.3,3731.2,2.68010291]
[1754559767229,1.17715759,3731.3,3731.2,2.68010291]
[1754559767612,0.92660001,3731.3,3731.2,2.68010291]
[1754559770836,1.17716426,3731.3,3731.2,2.68010291]
[1754559771145,1.17716426,3731.3,3730.0,9.33760587]
[1754559771394,0.1344,3730.9,3730.8,2.68034696]
[1754559771558,0.38500602,3730.9,3730.8,2.68034696]
[1754559771707,1.32620602,3730.9,3730.8,2.68034696]
[1754559772618,0.38500602,3730.9,3730.8,2.68034696]
[1754559773443,0.86750602,3730.9,3730.8,2.68034696]
[1754559773600,1.32620602,3730.9,3730.8,2.68034696]
[1754559774245,1.32620602,3730.9,3730.7,2.68043347]
[1754559774451,1.19188294,3730.8,3730.7,2.68043347]
[1754559775428,0.73318294,3730.8,3730.7,2.68043347]
[1754559775765,1.19188294,3730.8,3730.7,2.68043347]
[1754559778266,1.19198869,3730.8,3730.7,2.68043347]
[1754559779469,0.25078869,3730.8,3730.7,2.68043347]
[1754559780069,1e-08,3731.3,3731.1,2.68017474]
[1754559780070,0.1344,3731.2,3731.1,2.68017474]
[1754559780244,0.38525594,3731.2,3731.1,2.68017474]
[1754559780448,0.86775594,3731.2,3731.1,2.68017474]
[1754559780768,0.38525594,3731.2,3731.1,2.68017474]
[1754559780964,0.38525594,3731.2,3731.1,3.15057474]
[1754559781142,0.25085594,3731.2,3731.1,3.15057474]
[1754559781649,0.25085594,3731.2,3731.1,2.68017474]
[1754559782048,1e-08,3731.3,3731.2,2.68010291]
[1754559782253,1e-08,3731.3,3731.2,12.48810878]
[1754559782452,1e-08,3731.3,3731.2,3.58000291]
[1754559782831,1e-08,3731.3,3731.2,3.15050291]
[1754559783032,1e-08,3731.3,3731.2,15.9444098]
[1754559783355,1e-08,3731.3,3731.2,16.05200878]
[1754559786561,1e-08,3731.3,3731.2,6.71440291]
[1754559786775,1e-08,3731.3,3731.2,5.81450291]
[1754559791990,0.48250001,3731.3,3731.2,2.81450291]
[1754559792152,0.48250001,3731.3,3731.2,5.81450291]
[1754559793296,1e-08,3731.3,3731.2,5.81450291]
[1754559795988,1e-08,3731.3,3731.2,6.71440291]
[1754559797062,1e-08,3731.3,3731.2,6.28490291]
[1754559797262,1e-08,3731.3,3731.2,5.81450291]
[1754559800393,1e-08,3731.3,3731.2,6.29060291]
[1754559800896,1e-08,3731.3,3731.2,5.81450291]
[1754559802372,0.46610001,3731.3,3731.2,5.81450291]
[1754559804293,1e-08,3731.3,3731.2,5.81450291]
[1754559807180,0.46610001,3731.3,3731.2,5.81450291]
[1754559807406,0.91910001,3731.3,3731.2,5.81450291]
[1754559807605,1e-08,3731.3,3731.2,5.81450291]
[1754559807805,1.05350001,3731.3,3731.2,2.68010291]
[1754559808003,1.30445985,3731.3,3731.2,2.68010291]
[1754559812534,1.30464634,3731.3,3731.2,2.68010291]
[1754559812897,0.38554634,3731.3,3731.2,2.68010291]
[1754559813220,1.30464634,3731.3,3731.2,2.68010291]
[1754559814899,1.30464634,3731.3,3731.2,12.49380878]
[1754559814900,0.25114634,3731.3,3731.2,12.49380878]
[1754559815128,0.25114634,3731.3,3731.2,15.49380878]
[1754559815804,0.25111069,3731.3,3731.2,15.49380878]
[1754559816136,0.25111069,3731.3,3731.2,15.94120878]
[1754559816333,1e-08,3731.3,3731.2,15.94120878]
[1754559818526,1e-08,3731.3,3731.2,16.07560878]
[1754559820551,1e-08,3731.3,3731.2,6.29060291]
[1754559820740,1e-08,3731.3,3731.2,5.81450291]
[1754559822568,1e-08,3731.3,3731.2,15.59950878]
[1754559822772,1e-08,3731.3,3731.2,16.07560878]
[1754559824281,0.002,3731.7,3731.2,16.07560878]
[1754559824282,1e-08,3731.7,3731.6,2.67981562]
[1754559824481,1e-08,3731.7,3731.6,15.01742149]
[1754559824792,1e-08,3731.7,3731.6,16.07452149]
[1754559825583,0.4661,3734.2,3733.2,2.67866709]
[1754559825781,0.004,3734.7,3733.2,5.67866709]
[1754559825782,0.26090138,3733.3,3733.2,5.67866709]
[1754559825983,0.26090138,3733.3,3733.2,5.81226709]
[1754559826187,1.18000138,3733.3,3733.2,5.81226709]
[1754559826369,0.01002097,3733.3,3733.2,5.81226709]
[1754559826569,1e-08,3733.3,3733.2,6.73576709]
[1754559826798,1e-08,3733.4,3733.3,5.67859534]
[1754559826993,1e-08,3733.4,3733.3,6.60209534]
[1754559828793,1e-08,3733.4,3733.3,6.15469534]
[1754559829980,1e-08,3733.4,3733.3,5.67859534]
[1754559830322,1e-08,3733.4,3733.3,2.67859534]
[1754559830323,0.92810001,3733.4,3733.3,2.67859534]
[1754559830827,1e-08,3733.4,3733.3,12.01620121]
[1754559831123,1e-08,3733.4,3733.3,15.01620121]
[1754559831262,1e-08,3733.4,3733.3,15.14980121]
[1754559832113,1e-08,3733.4,3733.3,5.81219534]
[1754559832279,0.92810001,3733.4,3733.3,5.67859534]
[1754559832613,0.92810001,3733.4,3733.2,2.67864871]
[1754559832767,1.0617,3733.3,3733.2,2.67864871]
[1754559833604,0.1336,3733.3,3733.2,12.01625458]
[1754559833772,1.0617,3733.3,3733.2,2.67864871]
[1754559834368,1.0617,3733.3,3732.5,3.0]
[1754559834701,0.1336,3733.1,3732.5,3.1336]
[1754559835069,0.45710001,3733.4,3733.3,2.67859534]
[1754559835484,0.13360001,3733.4,3733.3,2.67859534]
[1754559835683,0.60460001,3733.4,3733.3,2.67859534]
[1754559836123,1.06170001,3733.4,3733.3,2.67859534]
[1754559836642,0.13360001,3733.4,3733.3,2.67859534]
[1754559836794,1.06170001,3733.4,3733.3,2.67859534]
[1754559837987,1.06170001,3733.4,3733.1,2.6786819]
[1754559837988,1.06170001,3733.4,3733.0,3.0]
[1754559838216,1.06170001,3733.4,3733.1,2.67869368]
[1754559838217,0.1336,3733.2,3733.1,2.67869368]
[1754559838519,1.0617,3733.2,3733.1,2.67869368]
[1754559838883,1.0617,3733.2,3733.0,5.67878197]
[1754559839119,0.1336,3733.2,3733.0,5.67878197]
[1754559839341,0.9281,3733.1,3733.0,5.67878197]
[1754559839539,0.9281,3733.1,3732.9,2.67881702]
[1754559839738,0.9281,3733.0,3732.9,2.67881702]
[1754559839941,0.5907,3733.0,3732.9,2.67881702]
[1754559840131,0.6046,3733.0,3732.9,2.67881702]
[1754559840337,1.0617,3733.0,3732.9,2.67881702]
[1754559841424,0.1336,3733.0,3732.9,2.67881702]
[1754559843220,0.1336,3733.0,3732.9,3.58391702]
[1754559843604,0.1336,3733.0,3732.9,2.67881702]
[1754559843920,1.0617,3733.0,3732.9,2.67881702]
[1754559844115,0.9281,3733.0,3732.9,2.67881702]
[1754559844315,1.0617,3733.0,3732.9,2.67881702]
[1754559845204,1.0617,3733.0,3732.9,2.67888237]
[1754559846041,1.0617,3733.0,3732.8,2.67890863]
[1754559846241,1e-08,3733.4,3732.9,2.67888237]
[1754559846407,0.2498736,3733.3,3732.9,2.67888237]
[1754559846607,0.1336,3733.0,3732.9,2.67888237]
[1754559846825,1.0617,3733.0,3732.9,2.67888237]
[1754559847765,0.1336,3733.0,3732.9,2.67888237]
[1754559848261,0.6046,3733.0,3732.9,2.67888237]
[1754559848425,1.0617,3733.0,3732.9,2.67888237]
[1754559848632,1.0617,3733.0,3732.8,2.67894853]
[1754559848932,0.9281,3732.9,3732.8,2.67894853]
[1754559849258,1.0617,3732.9,3732.8,2.67894853]
[1754559851161,1.31198653,3732.9,3732.8,2.67894853]
[1754559851737,0.85488653,3732.9,3732.8,2.67894853]
[1754559852540,0.38388653,3732.9,3732.8,2.67894853]
[1754559852925,0.85488653,3732.9,3732.8,2.67994853]
[1754559853125,1.31198653,3732.9,3732.8,2.67994853]
[1754559855484,0.38388653,3732.9,3732.8,2.67994853]
[1754559856073,0.38420765,3732.9,3732.8,2.67994853]
[1754559856580,0.38419347,3732.9,3732.8,2.67994853]
[1754559858289,0.38419347,3732.9,3732.8,3.58504853]
[1754559858450,0.1336,3733.0,3732.9,2.67888237]
[1754559858657,0.3842495,3733.0,3732.9,2.67888237]
[1754559858851,0.3842495,3733.0,3732.9,3.14498237]
[1754559859351,0.3842495,3733.0,3732.9,3.58398237]
[1754559860085,0.2506495,3733.0,3732.9,3.58398237]
[1754559860988,0.2506495,3733.0,3732.9,3.14498237]
[1754559864228,0.2506495,3733.0,3732.9,2.67888237]
[1754559864639,0.7198495,3733.0,3732.9,2.67888237]
[1754559865757,0.2506495,3733.0,3732.9,2.67888237]
[1754559865925,0.2506495,3733.0,3732.9,3.56188237]
[1754559867857,0.2506495,3733.0,3732.9,3.12918237]
[1754559868060,0.2506495,3733.0,3732.9,3.56188237]
[1754559868259,0.2506495,3733.0,3732.9,3.12918237]
[1754559870360,0.2506495,3733.0,3732.9,3.56188237]
[1754559871458,0.13560001,3733.4,3733.3,2.67859534]
[1754559871624,0.38669742,3733.4,3733.3,2.67859534]
[1754559871825,0.25309742,3733.4,3733.3,2.67859534]
[1754559872027,0.25309742,3733.4,3733.3,3.56159534]
[1754559872760,0.00200001,3733.4,3733.3,6.69519534]
[1754559873546,0.00200001,3733.4,3733.3,6.26249534]
[1754559873762,0.00200001,3733.4,3733.3,6.69519534]
[1754559875551,0.00200001,3733.4,3733.3,6.26249534]
[1754559875788,0.00200001,3733.4,3733.3,6.69519534]
[1754559876958,0.00200001,3733.4,3733.3,5.81219534]
[1754559881479,0.47120001,3733.4,3733.3,5.81219534]
[1754559882782,0.00200001,3733.4,3733.3,5.81219534]
[1754559884570,0.00200001,3733.4,3733.3,6.26249534]
[1754559884764,0.00200001,3733.4,3733.3,5.81219534]
[1754559885993,1e-08,3733.4,3733.3,6.69519534]
[1754559887149,1e-08,3733.4,3733.3,6.26249534]
[1754559888164,1e-08,3733.4,3733.3,5.81219534]
[1754559888569,1e-08,3733.4,3733.3,2.81219534]
[1754559889097,1e-08,3733.4,3733.3,5.81219534]
[1754559891460,0.46190001,3733.4,3733.3,5.67859534]
[1754559891688,0.91250001,3733.4,3733.3,5.67859534]
[1754559892586,1e-08,3733.4,3733.3,5.67859534]
[1754559892791,1e-08,3733.4,3733.3,6.62449534]
[1754559893323,1e-08,3733.4,3733.3,6.75809534]
[1754559902088,1e-08,3733.4,3733.3,7.21999534]
[1754559904213,1e-08,3733.4,3733.3,5.81219534]
[1754559904457,0.46190001,3733.4,3733.3,5.81219534]
[1754559904746,1e-08,3733.4,3733.3,5.81219534]
[1754559905507,1e-08,3733.4,3733.3,6.30289534]
[1754559906103,1e-08,3733.4,3733.3,5.81219534]
[1754559906937,0.91250001,3733.4,3733.3,5.81219534]
[1754559907718,1e-08,3733.4,3733.3,5.81219534]
[1754559908155,0.46190001,3733.4,3733.3,5.81219534]
[1754559908459,0.91250001,3733.4,3733.3,5.81219534]
[1754559911332,0.91250001,3733.4,3733.3,5.67859534]
[1754559911535,0.91250001,3733.4,3733.3,15.01620121]
[1754559911734,1e-08,3733.4,3733.3,15.01620121]
[1754559911978,1e-08,3733.4,3733.3,15.14980121]
[1754559913279,1e-08,3733.4,3733.3,15.01620121]
[1754559913566,1e-08,3733.4,3733.3,15.14980121]
[1754559913778,1e-08,3733.4,3733.3,16.09570121]
[1754559914177,0.002,3733.8,3733.7,2.67830838]
[1754559914373,0.002,3733.8,3733.7,15.14951425]
[1754559914677,0.002,3733.8,3733.7,16.09541425]
[1754559915279,0.002,3733.8,3733.7,15.96181425]
[1754559916368,0.002,3733.8,3733.7,15.50661425]
[1754559916543,0.002,3733.8,3733.7,15.01591425]
[1754559917165,0.002,3733.8,3733.7,15.50661425]
[1754559917345,0.002,3733.8,3733.7,15.96181425]
[1754559918958,0.002,3734.2,3734.1,12.01562734]
[1754559922282,0.002,3734.2,3734.1,15.01562734]
[1754559923049,0.965,3734.2,3734.1,15.01562734]
[1754559923269,0.002,3734.2,3734.1,15.01562734]
[1754559925189,0.002,3734.2,3734.1,16.04462734]
[1754559926269,0.002,3734.2,3734.1,15.61632734]
[1754559927190,0.002,3734.2,3734.1,16.04462734]
[1754559927487,0.002,3734.2,3734.1,15.61632734]
[1754559927692,0.002,3734.2,3734.1,15.14922734]
[1754559927877,0.002,3734.2,3734.1,16.04462734]
[1754559928219,3.84717838,3734.5,3734.4,5.67780634]
[1754559928389,3.84717838,3734.5,3734.4,15.01541221]
[1754559928593,3.84717838,3734.5,3734.4,5.81140634]
[1754559928765,3.84717838,3734.5,3734.4,15.14901221]
[1754559929677,0.004,3734.7,3734.6,2.67766293]
[1754559929999,0.004,3734.7,3734.6,5.67766293]
[1754559930298,0.967,3734.7,3734.6,5.81126293]
[1754559930493,0.4938,3734.7,3734.6,5.81126293]
[1754559930869,0.967,3734.7,3734.6,5.81126293]
[1754559932270,0.004,3734.7,3734.6,5.87438741]
[1754559932464,0.4938,3734.7,3734.6,15.34559328]
[1754559932980,0.4938,3734.7,3734.6,6.00798741]
[1754559933811,0.004,3734.7,3734.6,6.00798741]
[1754559934402,0.967,3734.7,3734.6,6.00798741]
[1754559934997,0.004,3734.7,3734.6,6.00798741]
[1754559937378,0.4938,3734.7,3734.6,6.00798741]
[1754559937709,0.967,3734.7,3734.6,6.00798741]
[1754559938124,0.4938,3734.7,3734.6,6.00798741]
[1754559938290,0.004,3734.7,3734.6,6.00798741]
[1754559939579,0.4938,3734.7,3734.6,6.00798741]
[1754559940001,0.967,3734.7,3734.6,6.00798741]
[1754559940582,0.967,3734.7,3734.1,0.1336]
[1754559940583,1.1006,3734.7,3734.1,0.1336]
[1754559940805,0.1336,3734.5,3733.7,2.67828784]
[1754559941012,0.963,3734.4,3734.2,2.67790182]
[1754559941214,0.1336,3734.5,3734.3,2.67787804]
[1754559941412,0.963,3734.3,3733.9,0.1336]
[1754559941738,0.1336,3734.0,3733.7,2.67829743]
[1754559942041,0.1336,3734.0,3733.9,2.67812992]
[1754559942532,1.0966,3734.0,3733.9,2.67812992]
[1754559943133,0.55,3733.9,3733.3,0.001]
[1754559943445,0.1336,3733.4,3733.3,2.67953514]
[1754559943612,1.0966,3733.4,3733.3,0.001]
[1754559944095,1.34729442,3733.4,3733.3,0.001]
[1754559944292,1.34729442,3733.4,3733.3,2.67959534]
[1754559944558,1.0966,3733.4,3733.3,2.67959534]
[1754559944730,0.4898,3733.7,3733.6,2.67838011]
[1754559945300,0.1336,3733.8,3733.7,2.67830838]
[1754559945634,0.6068,3733.8,3733.7,2.67830838]
[1754559945932,0.85722668,3733.8,3733.7,2.67830838]
[1754559946243,0.87382668,3733.8,3733.7,2.67830838]
[1754559946448,0.1336,3733.8,3733.7,2.67830838]
[1754559946610,0.4898,3734.2,3734.1,2.67802147]
[1754559946812,1.21333073,3734.2,3733.7,0.1336]
[1754559947138,1.21333073,3734.1,3733.3,0.001]
[1754559947315,1.21333073,3734.0,3733.8,2.67817475]
[1754559947511,0.004,3734.7,3733.9,2.67816492]
[1754559947699,0.004,3734.7,3733.3,0.001]
[1754559947700,0.1336,3734.1,3734.0,2.67808512]
[1754559947899,0.38391066,3734.1,3734.0,2.67808512]
[1754559948098,1.34691066,3734.1,3734.0,2.67808512]
[1754559948299,0.25031066,3734.1,3734.0,2.67808512]
[1754559948504,1.21331066,3734.1,3734.0,2.67808512]
[1754559949838,1.21321037,3734.1,3734.0,2.67808512]
[1754559951144,0.963,3734.1,3734.0,2.67808512]
[1754559951630,1.21315527,3734.1,3733.7,0.1336]
[1754559951942,1.21315527,3734.1,3733.3,0.4542]
[1754559951943,1.0582,3734.0,3733.8,2.67817631]
[1754559952250,0.9246,3733.9,3733.8,2.67817631]
[1754559952616,0.9246,3733.9,3733.6,2.67837628]
[1754559952824,0.9246,3733.8,3733.3,0.001]
[1754559953036,0.1336,3733.5,3733.4,2.6784738]
[1754559953236,1.0582,3733.5,3733.4,2.6784738]
[1754559954350,1.0582,3733.5,3733.3,2.67958491]
[1754559954645,0.9246,3733.4,3733.3,0.001]
[1754559954944,1.4746,3733.4,3733.3,0.001]
[1754559955246,31.72468962,3733.4,3733.3,0.001]
[1754559955945,31.72460934,3733.4,3733.3,0.001]
[1754559956459,31.72449131,3733.4,3733.3,0.001]
[1754559957231,34.4030149,3733.4,3733.3,0.001]
[1754559957464,31.72449131,3733.4,3733.3,0.001]
[1754559958013,37.4030149,3733.4,3733.3,0.001]
[1754559958461,4.72449131,3733.4,3733.3,0.001]
[1754559958630,34.72449131,3733.4,3733.3,0.001]
[1754559958817,37.4030149,3733.4,3733.3,0.001]
[1754559959814,34.72449131,3733.4,3733.3,0.001]
[1754559960021,37.4030149,3733.4,3733.3,0.001]
[1754559961114,37.51001207,3733.4,3733.3,0.001]
[1754559961314,34.83148848,3733.4,3733.3,0.001]
[1754559961740,37.51001207,3733.4,3733.3,0.001]
[1754559962164,7.51001207,3733.4,3733.3,0.001]
[1754559962319,37.51001207,3733.4,3733.3,0.001]
[1754559963717,37.50983163,3733.4,3733.3,0.001]
[1754559963913,37.64014873,3733.4,3733.3,0.001]
[1754559966118,3.22873884,3733.1,3733.0,0.001]
[1754559966327,45.94927375,3733.1,3733.0,0.001]
[1754559966527,46.87387375,3733.1,3733.0,0.001]
[1754559967658,6.2288106,3733.0,3732.9,0.001]
[1754559967855,37.40273964,3733.0,3732.9,0.001]
[1754559969032,34.17392904,3733.0,3732.9,0.001]
[1754559969236,31.17392904,3733.0,3732.9,0.001]
[1754559969434,34.72392904,3733.0,3732.9,0.001]
[1754559969636,37.40273964,3733.0,3732.9,0.001]
[1754559969951,34.72392904,3733.0,3732.9,0.001]
[1754559971926,37.40273964,3733.0,3732.9,0.001]
[1754559972125,34.72392904,3733.0,3732.9,0.001]
[1754559972362,33.79932904,3733.0,3732.9,0.001]
[1754559972661,33.6836,3733.0,3732.9,0.001]
[1754559972860,33.93306733,3733.0,3732.9,0.001]
[1754559973224,4.38506733,3733.0,3732.9,0.001]
[1754559973928,34.49245833,3733.0,3732.9,0.001]
[1754559974728,34.04045833,3733.0,3732.9,0.001]
[1754559975662,34.49252685,3733.0,3732.9,0.001]
[1754559976871,34.04052685,3733.0,3732.9,0.001]
[1754559977094,30.93313585,3733.0,3732.9,0.8834]
[1754559977563,30.93313585,3733.0,3732.9,0.4542]
[1754559979264,30.93313585,3733.0,3732.9,0.001]
[1754559981074,31.87253585,3733.0,3732.9,0.001]
[1754559981602,31.87311597,3733.0,3732.9,0.001]
[1754559981733,31.42091597,3733.0,3732.9,0.001]
[1754559982067,31.87311597,3733.0,3732.9,0.001]
[1754559982688,34.55192657,3733.0,3732.9,0.001]
[1754559982983,46.88953244,3733.0,3732.9,0.001]
[1754559983583,30.55,3732.9,3732.6,0.001]
[1754559983783,31.28731597,3732.9,3732.6,0.001]
[1754559983987,31.73951597,3732.9,3732.6,0.001]
[1754559984284,31.28731597,3732.9,3732.6,0.001]
[1754559984484,30.80011597,3732.9,3732.6,0.001]
[1754559985181,30.93371597,3732.9,3732.8,0.9033]
[1754559985475,30.38371597,3732.9,3732.8,0.9033]
[1754559986453,30.38371597,3732.9,3732.8,0.001]
[1754559986637,30.93371597,3732.9,3732.8,0.001]
[1754559987457,31.1708,3732.9,3732.8,0.001]
[1754559987772,0.55,3732.8,3732.6,0.001]
[1754559987976,0.93456502,3732.7,3732.6,0.001]
[1754559988275,30.93456502,3732.7,3732.6,0.001]
[1754559990280,30.93456502,3732.7,3732.6,0.9033]
[1754559991485,0.38456502,3732.7,3732.6,3.58239767]
[1754559993391,0.25096502,3732.7,3732.6,3.58239767]
[1754559993677,0.1356,3733.0,3732.9,2.67888237]
[1754559993978,0.38659152,3733.0,3732.9,2.67888237]
[1754559994178,0.38659152,3733.0,3732.9,3.58118237]
[1754559997071,0.25299152,3733.0,3732.9,3.58118237]
[1754559997509,0.25299152,3733.0,3732.9,12.91878824]
[1754559998316,0.25299152,3733.0,3732.9,3.58118237]
[1754560001527,0.25299152,3733.0,3732.9,3.71478237]
[1754560002401,0.002,3733.0,3732.9,3.71478237]
[1754560002602,0.25269038,3733.0,3732.9,3.71478237]
[1754560003126,0.002,3733.0,3732.9,3.71478237]
[1754560003331,0.25269038,3733.0,3732.9,3.71478237]
[1754560003734,0.25269038,3733.0,3732.9,2.67888237]
[1754560004033,0.25269038,3733.0,3732.9,3.14198237]
[1754560004532,0.25269038,3733.0,3732.9,2.67888237]
[1754560004897,0.73989038,3733.0,3732.9,2.67888237]
[1754560005102,0.87349038,3733.0,3732.9,2.67888237]
[1754560005609,1.32566528,3733.0,3732.6,0.001]
[1754560005921,0.1336,3732.8,3732.6,0.001]
[1754560006101,0.80066528,3732.7,3732.6,0.001]
[1754560006299,1.74006528,3732.7,3732.6,0.001]
[1754560010433,0.25066528,3732.7,3732.6,0.001]
[1754560010836,1.18686528,3732.7,3732.6,0.001]
[1754560011433,0.25066528,3732.7,3732.6,0.001]
[1754560011809,1.18686528,3732.7,3732.6,0.001]
[1754560012231,0.25066528,3732.7,3732.6,0.001]
[1754560013445,0.72786528,3732.7,3732.6,0.001]
[1754560014308,0.72804919,3732.7,3732.6,0.001]
[1754560014509,0.25084919,3732.7,3732.6,0.001]
[1754560014910,0.72804919,3732.7,3732.6,0.001]
[1754560015226,1.18704919,3732.7,3732.6,0.001]
[1754560017171,1.73704919,3732.7,3732.6,0.001]
[1754560017326,31.73704876,3732.7,3732.6,0.001]
[1754560017853,31.73705048,3732.7,3732.6,0.001]
[1754560020658,31.27805048,3732.7,3732.6,0.001]
[1754560020821,31.73705048,3732.7,3732.6,0.001]
[1754560023867,1.73705048,3732.7,3732.6,0.001]
[1754560024072,31.73705048,3732.7,3732.6,0.001]
[1754560024235,35.80305048,3732.7,3732.6,0.001]
[1754560026349,35.34405048,3732.7,3732.6,0.001]
[1754560026670,35.80305048,3732.7,3732.2,3.0542668]
[1754560026839,30.25085048,3732.6,3732.2,3.0542668]
[1754560027039,0.1336,3732.3,3732.2,3.0542668]
[1754560027241,4.44945048,3732.3,3732.2,3.0542668]
[1754560028071,4.44942395,3732.3,3732.2,3.0542668]
[1754560028241,4.44942395,3732.3,3732.2,0.3749]
[1754560028442,4.44942395,3732.3,3732.1,2.68043117]
[1754560028643,0.25082395,3732.2,3732.1,2.68043117]
[1754560029245,0.25082395,3732.2,3732.1,0.001]
[1754560029743,0.25082395,3732.2,3732.1,2.6804566]
[1754560030074,0.25082395,3732.2,3732.1,3.1232566]
[1754560030284,0.25082395,3732.2,3732.1,3.5741566]
[1754560030593,0.25082395,3732.2,3732.1,3.1313566]
[1754560030740,0.25082395,3732.2,3732.1,0.001]
[1754560030939,4.1986,3732.3,3732.1,2.6804566]
[1754560031137,0.25087317,3732.2,3732.1,2.6804566]
[1754560031542,0.25087317,3732.2,3732.1,0.001]
[1754560032138,0.72807317,3732.2,3732.1,0.001]
[1754560032343,1.18707317,3732.2,3732.1,0.001]
[1754560034182,1.18722971,3732.2,3732.1,0.001]
[1754560035380,0.25102971,3732.2,3732.1,0.001]
[1754560035579,0.25102971,3732.2,3732.1,0.4519]
[1754560035782,0.25102971,3732.2,3732.1,0.001]
[1754560036284,0.72822971,3732.2,3732.1,0.001]
[1754560036686,0.25102971,3732.2,3732.1,0.001]
[1754560038887,0.72822971,3732.2,3732.1,0.001]
[1754560039071,0.25102971,3732.2,3732.1,0.001]
[1754560040087,0.2511239,3732.2,3732.1,0.001]
[1754560041890,4.3121239,3732.2,3732.1,3.6153566]
[1754560042094,0.2511239,3732.2,3732.1,3.6153566]
[1754560042395,4.3121239,3732.2,3732.1,3.6153566]
[1754560042609,4.3121239,3732.2,3732.1,0.001]
[1754560042805,4.8090239,3732.2,3732.1,0.001]
[1754560043097,5.24573138,3732.2,3732.1,0.001]
[1754560043602,4.9945,3732.2,3732.1,0.001]
[1754560043902,5.24579242,3732.2,3732.1,0.001]
[1754560044272,4.9945,3732.2,3732.1,0.001]
[1754560044462,5.24579199,3732.2,3732.1,0.001]
[1754560048111,5.79579199,3732.2,3732.1,0.001]
[1754560048595,38.4751768,3732.2,3732.1,0.001]
[1754560049277,35.79579199,3732.2,3732.1,0.001]
[1754560050093,38.4751768,3732.2,3732.1,0.001]
[1754560051126,47.81278267,3732.2,3732.1,0.001]
[1754560051479,3.2294566,3732.1,3732.0,0.001]
[1754560051719,34.54784859,3732.1,3732.0,0.001]
[1754560052168,31.86839199,3732.1,3732.0,0.001]
[1754560053581,30.93489199,3732.1,3732.0,0.001]
[1754560053803,35.49479199,3732.1,3732.0,0.001]
[1754560054008,35.93139199,3732.1,3732.0,0.001]
[1754560054581,5.93139199,3732.1,3732.0,0.001]
[1754560054780,35.93139199,3732.1,3732.0,0.001]
[1754560055004,34.99789199,3732.1,3732.0,0.001]
[1754560055382,4.99889199,3732.1,3732.0,0.4765]
[1754560055902,4.99889199,3732.1,3732.0,0.001]
[1754560057514,0.93489199,3732.1,3732.0,0.001]
[1754560057711,4.99889199,3732.1,3732.0,0.001]
[1754560058028,4.99855232,3732.1,3732.0,0.4765]
[1754560058316,4.99855232,3732.1,3732.0,0.001]
[1754560059234,5.93205232,3732.1,3732.0,0.001]
[1754560059394,35.93205232,3732.1,3732.0,0.001]
[1754560060977,35.6811,3732.1,3732.0,0.001]
[1754560061183,35.93208056,3732.1,3732.0,0.001]
[1754560061740,30.93458056,3732.1,3732.0,0.001]
[1754560062017,34.99758056,3732.1,3732.0,0.001]
[1754560062221,35.49448056,3732.1,3732.0,0.001]
[1754560062513,5.93108056,3732.1,3732.0,0.001]
[1754560062685,35.93108056,3732.1,3732.0,0.001]
[1754560065223,38.61053716,3732.1,3732.0,0.001]
[1754560066517,35.93108056,3732.1,3732.0,0.001]
[1754560066997,35.9311296,3732.1,3732.0,0.001]
[1754560067389,38.6105862,3732.1,3732.0,0.001]
[1754560067590,8.6105862,3732.1,3732.0,0.001]